bitfinex/quotes_BTCUSD_20220105
["timestamp","ask_amount","ask_price","bid_price","bid_amount"]
[1641343807226,0.58324931,46194.0,46193.0,0.21994764]
[1641343808430,0.57324931,46194.0,46193.0,0.21994764]
[1641343809029,0.47929698,46194.0,46193.0,0.21994764]
[1641343809233,0.49029698,46194.0,46193.0,0.21994764]
[1641343810568,0.47929698,46194.0,46193.0,0.21994764]
[1641343811170,0.49029698,46194.0,46193.0,0.21994764]
[1641343811372,0.44179698,46194.0,46193.0,0.47200271]
[1641343811569,0.11634598,46194.0,46193.0,0.47200271]
[1641343811868,0.06634598,46194.0,46193.0,0.21994764]
[1641343812068,0.06634598,46194.0,46193.0,0.75994764]
[1641343812470,0.05534598,46194.0,46193.0,0.75994764]
[1641343812669,0.05534598,46194.0,46193.0,0.99166468]
[1641343812873,0.00119998,46194.0,46193.0,0.99166468]
[1641343813268,0.01819998,46194.0,46193.0,0.99166468]
[1641343814313,0.01819998,46194.0,46193.0,0.75994764]
[1641343814517,0.00119998,46194.0,46193.0,0.75994764]
[1641343815313,0.06419998,46194.0,46193.0,0.75994764]
[1641343816516,0.00119998,46194.0,46193.0,0.75994764]
[1641343817318,0.02319998,46194.0,46193.0,0.75994764]
[1641343818463,0.00119998,46194.0,46193.0,0.75994764]
[1641343819267,0.02219998,46194.0,46193.0,0.75994764]
[1641343819466,0.02219998,46194.0,46193.0,0.21994764]
[1641343820067,0.02219998,46194.0,46193.0,0.78994764]
[1641343820466,0.00119998,46194.0,46193.0,0.78994764]
[1641343820967,0.00238833,46194.0,46193.0,0.78994764]
[1641343821370,0.05338833,46194.0,46193.0,0.78994764]
[1641343821572,0.05338833,46194.0,46193.0,0.21994764]
[1641343822013,0.05338833,46194.0,46193.0,0.58994764]
[1641343822413,0.00238833,46194.0,46193.0,0.58994764]
[1641343823216,0.02312778,46194.0,46193.0,0.58994764]
[1641343823917,0.02312778,46194.0,46193.0,0.21994764]
[1641343824517,0.00212778,46194.0,46193.0,0.21994764]
[1641343825317,0.08462778,46194.0,46193.0,0.21994764]
[1641343825971,0.08462778,46194.0,46193.0,0.61994764]
[1641343826868,0.08462778,46194.0,46193.0,0.21994764]
[1641343827268,0.06162778,46194.0,46193.0,0.21994764]
[1641343827968,0.06162778,46194.0,46193.0,0.62994764]
[1641343828674,0.05062778,46194.0,46193.0,0.21994764]
[1641343828868,0.05062778,46194.0,46193.0,0.58994764]
[1641343829332,0.06262778,46194.0,46193.0,0.58994764]
[1641343829733,0.06262778,46194.0,46193.0,0.21994764]
[1641343830434,0.05062778,46194.0,46193.0,0.21994764]
[1641343830634,0.37607878,46194.0,46193.0,0.21994764]
[1641343830833,0.373951,46194.0,46193.0,0.21994764]
[1641343831236,0.73851275,46194.0,46193.0,0.21994764]
[1641343831435,0.80171275,46194.0,46193.0,0.21994764]
[1641343832033,0.553151,46194.0,46193.0,0.21994764]
[1641343832634,0.537151,46194.0,46193.0,0.21994764]
[1641343832835,0.473951,46194.0,46193.0,0.21994764]
[1641343833271,0.483951,46194.0,46193.0,0.21994764]
[1641343833472,0.76166897,46194.0,46193.0,0.21994764]
[1641343833876,0.57423898,46194.0,46193.0,0.21994764]
[1641343834072,0.62423898,46194.0,46193.0,0.21994764]
[1641343834472,0.61423898,46194.0,46193.0,0.21994764]
[1641343835274,0.62523898,46194.0,46193.0,0.21994764]
[1641343836076,0.57523898,46194.0,46193.0,0.21994764]
[1641343836479,0.56423898,46194.0,46193.0,0.21994764]
[1641343836721,0.523951,46194.0,46193.0,0.21994764]
[1641343837320,0.438951,46194.0,46193.0,0.21994764]
[1641343837517,0.538951,46194.0,46193.0,0.21994764]
[1641343838517,0.523951,46194.0,46193.0,0.21994764]
[1641343838717,0.423951,46194.0,46193.0,0.21994764]
[1641343839318,0.437951,46194.0,46193.0,0.21994764]
[1641343840470,0.423951,46194.0,46193.0,0.21994764]
[1641343841267,0.427343,46194.0,46193.0,0.21994764]
[1641343841466,0.441343,46194.0,46193.0,0.21994764]
[1641343841669,0.78643809,46194.0,46193.0,0.21994764]
[1641343842964,0.541343,46194.0,46193.0,0.21994764]
[1641343843365,0.551343,46194.0,46193.0,0.21994764]
[1641343844719,0.527343,46194.0,46193.0,0.21994764]
[1641343846520,0.5296011,46194.0,46193.0,0.21994764]
[1641343847421,0.5406011,46194.0,46193.0,0.21994764]
[1641343848671,0.77937426,46194.0,46193.0,0.21994764]
[1641343849168,0.5296011,46194.0,46193.0,0.21994764]
[1641343849372,0.78284136,46194.0,46193.0,0.21994764]
[1641343849973,0.5406011,46194.0,46193.0,0.21994764]
[1641343850670,0.5296011,46194.0,46193.0,0.21994764]
[1641343851469,0.5406011,46194.0,46193.0,0.21994764]
[1641343852023,0.5406011,46194.0,46193.0,0.21894764]
[1641343852620,0.5296011,46194.0,46193.0,0.21894764]
[1641343853420,0.5396011,46194.0,46193.0,0.21894764]
[1641343854625,0.5296011,46194.0,46193.0,0.21894764]
[1641343855474,0.5406011,46194.0,46193.0,0.21894764]
[1641343856775,0.5296011,46194.0,46193.0,0.21894764]
[1641343857375,0.5406011,46194.0,46193.0,0.21894764]
[1641343857575,0.5396011,46194.0,46193.0,0.21894764]
[1641343858775,0.58722091,46194.0,46193.0,0.21894764]
[1641343859242,0.57622091,46194.0,46193.0,0.21894764]
[1641343859443,0.58622091,46194.0,46193.0,0.21894764]
[1641343860143,0.58622091,46194.0,46193.0,0.46984911]
[1641343860144,0.3886011,46194.0,46193.0,0.46984911]
[1641343860344,0.0146501,46194.0,46193.0,0.46984911]
[1641343860543,0.0146501,46194.0,46193.0,1.31984911]
[1641343860742,0.0046501,46194.0,46193.0,1.31984911]
[1641343861142,0.0046501,46194.0,46193.0,1.06894764]
[1641343861341,0.0826501,46194.0,46193.0,1.06894764]
[1641343862144,0.0826501,46194.0,46193.0,0.21894764]
[1641343862348,0.1326501,46194.0,46193.0,0.21894764]
[1641343862545,0.0546501,46194.0,46193.0,0.21894764]
[1641343862968,0.0046501,46194.0,46193.0,0.21894764]
[1641343863368,0.0326501,46194.0,46193.0,0.21894764]
[1641343863568,0.0326501,46194.0,46193.0,0.58894764]
[1641343865168,0.0046501,46194.0,46193.0,0.58394764]
[1641343865368,0.0696501,46194.0,46193.0,0.58394764]
[1641343865569,0.0696501,46194.0,46193.0,0.21394764]
[1641343866820,0.0046501,46194.0,46193.0,0.21394764]
[1641343867419,0.0046501,46194.0,46193.0,0.67394764]
[1641343867420,0.0586501,46194.0,46193.0,0.67394764]
[1641343869422,0.0606501,46194.0,46193.0,0.67394764]
[1641343869622,0.0606501,46194.0,46193.0,0.21394764]
[1641343871274,0.0046501,46194.0,46193.0,0.21394764]
[1641343871470,0.0296501,46194.0,46193.0,0.57394764]
[1641343872071,0.03135012,46194.0,46193.0,0.57394764]
[1641343872674,0.05635012,46194.0,46193.0,0.57394764]
[1641343873074,0.00635012,46194.0,46193.0,0.57394764]
[1641343873475,0.03135012,46194.0,46193.0,0.57394764]
[1641343874731,0.00635012,46194.0,46193.0,0.57394764]
[1641343875534,0.03135012,46194.0,46193.0,0.57394764]
[1641343876631,0.00635012,46194.0,46193.0,0.57394764]
[1641343876834,0.00635012,46194.0,46193.0,0.21394764]
[1641343877532,0.03135012,46194.0,46193.0,0.21394764]
[1641343877732,0.35680112,46194.0,46193.0,0.21394764]
[1641343877974,0.40530112,46194.0,46193.0,0.21394764]
[1641343878180,0.50530112,46194.0,46193.0,0.21394764]
[1641343878771,0.48030112,46194.0,46193.0,0.21394764]
[1641343879374,0.48030112,46194.0,46193.0,0.55394764]
[1641343879574,0.39630112,46194.0,46193.0,0.55394764]
[1641343880779,0.38030112,46194.0,46193.0,0.55394764]
[1641343881076,0.38030112,46194.0,46193.0,0.21394764]
[1641343881476,0.43330112,46194.0,46193.0,0.21394764]
[1641343882624,0.53330112,46194.0,46193.0,0.21394764]
[1641343882825,0.48030112,46194.0,46193.0,0.21394764]
[1641343883627,0.49430112,46194.0,46193.0,0.21394764]
[1641343884627,0.48030112,46194.0,46193.0,0.21394764]
[1641343885494,0.49330112,46194.0,46193.0,0.21394764]
[1641343886793,0.48030112,46194.0,46193.0,0.21394764]
[1641343887596,0.49330112,46194.0,46193.0,0.21394764]
[1641343888997,0.48030112,46194.0,46193.0,0.21394764]
[1641343889623,0.49130112,46194.0,46193.0,0.21394764]
[1641343890824,0.48030112,46194.0,46193.0,0.21394764]
[1641343891625,0.49330112,46194.0,46193.0,0.21394764]
[1641343893275,0.49330112,46194.0,46193.0,0.59394764]
[1641343893475,0.50530112,46194.0,46193.0,0.21394764]
[1641343894078,0.50530112,46194.0,46193.0,0.69394764]
[1641343894879,0.48030112,46194.0,46193.0,0.21394764]
[1641343895081,0.38030112,46194.0,46193.0,0.69394764]
[1641343895280,0.38030112,46194.0,46193.0,0.21394764]
[1641343895281,0.05485012,46194.0,46193.0,0.21394764]
[1641343895580,0.06785012,46194.0,46193.0,0.21394764]
[1641343896079,0.06785012,46194.0,46193.0,0.66394764]
[1641343896722,0.05485012,46194.0,46193.0,0.66394764]
[1641343897424,0.05485012,46194.0,46193.0,0.21394764]
[1641343897627,0.40030112,46194.0,46193.0,0.21394764]
[1641343898126,0.50030112,46194.0,46193.0,0.21394764]
[1641343898725,0.48030112,46194.0,46193.0,0.21394764]
[1641343899129,0.38030112,46194.0,46193.0,0.85394764]
[1641343899325,0.05485012,46194.0,46193.0,0.85394764]
[1641343899526,0.07285012,46194.0,46193.0,0.21394764]
[1641343900767,0.05485012,46194.0,46193.0,0.21394764]
[1641343901670,0.06685012,46194.0,46193.0,0.21394764]
[1641343902067,0.06685012,46194.0,46193.0,0.65394764]
[1641343902669,0.06685012,46194.0,46193.0,0.21394764]
[1641343903769,0.07885012,46194.0,46193.0,0.21394764]
[1641343903969,0.07885012,46194.0,46193.0,0.55394764]
[1641343904821,0.05485012,46194.0,46193.0,0.21394764]
[1641343905620,0.06785012,46194.0,46193.0,0.21394764]
[1641343906020,0.06785012,46194.0,46193.0,0.52394764]
[1641343906824,0.05485012,46194.0,46193.0,0.52394764]
[1641343907621,0.06785012,46194.0,46193.0,0.52394764]
[1641343908879,0.05485012,46194.0,46193.0,0.52394764]
[1641343909676,0.06685012,46194.0,46193.0,0.52394764]
[1641343910777,0.05485012,46194.0,46193.0,0.52394764]
[1641343911577,0.06785012,46194.0,46193.0,0.52394764]
[1641343912823,0.05485012,46194.0,46193.0,0.52394764]
[1641343913725,0.06785012,46194.0,46193.0,0.52394764]
[1641343913924,0.06785012,46194.0,46193.0,0.94394764]
[1641343914124,0.06785012,46194.0,46193.0,0.52394764]
[1641343914925,0.05485012,46194.0,46193.0,0.52394764]
[1641343915568,0.06885012,46194.0,46193.0,0.52394764]
[1641343916869,0.05485012,46194.0,46193.0,0.52394764]
[1641343917669,0.06785012,46194.0,46193.0,0.21394764]
[1641343918971,0.05485012,46194.0,46193.0,0.21394764]
[1641343919632,0.06785012,46194.0,46193.0,0.21394764]
[1641343920932,0.06785012,46194.0,46193.0,0.80394764]
[1641343921135,0.05485012,46194.0,46193.0,0.80394764]
[1641343921333,0.05485012,46194.0,46193.0,0.21394764]
[1641343921734,0.06785012,46194.0,46193.0,0.21394764]
[1641343921934,0.06785012,46194.0,46193.0,0.56394764]
[1641343922973,0.05485012,46194.0,46193.0,0.56394764]
[1641343923774,0.06885012,46194.0,46193.0,0.56394764]
[1641343925077,0.05485012,46194.0,46193.0,0.56394764]
[1641343925677,0.06885012,46194.0,46193.0,0.56394764]
[1641343927021,0.05485012,46194.0,46193.0,0.56394764]
[1641343927723,0.06885012,46194.0,46193.0,0.56394764]
[1641343928926,0.05485012,46194.0,46193.0,0.56394764]
[1641343929622,0.07085012,46194.0,46193.0,0.56394764]
[1641343929823,0.07085012,46194.0,46193.0,0.21394764]
[1641343930974,0.05485012,46194.0,46193.0,0.21394764]
[1641343931174,0.38030112,46194.0,46193.0,0.21394764]
[1641343931775,0.39330112,46194.0,46193.0,0.21394764]
[1641343932978,0.38030112,46194.0,46193.0,0.21394764]
[1641343933776,0.39430112,46194.0,46193.0,0.50394764]
[1641343934221,0.39430112,46194.0,46193.0,0.21394764]
[1641343934621,0.39430112,46194.0,46193.0,0.50394764]
[1641343935022,0.38030112,46194.0,46193.0,0.50394764]
[1641343935625,0.39430112,46194.0,46193.0,0.50394764]
[1641343935825,0.39430112,46194.0,46193.0,0.21394764]
[1641343936926,0.38030112,46194.0,46193.0,0.21394764]
[1641343937730,0.39330112,46194.0,46193.0,0.21394764]
[1641343938173,0.3945012,46194.0,46193.0,0.21394764]
[1641343938873,0.3815012,46194.0,46193.0,0.21394764]
[1641343939672,0.3955012,46194.0,46193.0,0.21394764]
[1641343940975,0.3815012,46194.0,46193.0,0.21394764]
[1641343941820,0.3955012,46194.0,46193.0,0.21394764]
[1641343943021,0.3815012,46194.0,46193.0,0.21394764]
[1641343943723,0.4955012,46194.0,46193.0,0.21394764]
[1641343944923,0.4815012,46194.0,46193.0,0.21394764]
[1641343945576,0.73288802,46194.0,46193.0,0.21394764]
[1641343945780,0.74388802,46194.0,46193.0,0.21394764]
[1641343946276,0.74376832,46194.0,46193.0,0.21394764]
[1641343946477,0.4923815,46194.0,46193.0,0.21394764]
[1641343946677,0.73979522,46194.0,46193.0,0.21394764]
[1641343946980,2.47015767,46193.0,46187.0,0.01229356]
[1641343947179,0.66096,46188.0,46187.0,0.01229356]
[1641343947381,1.034911,46188.0,46187.0,0.01229356]
[1641343947578,1.51278961,46188.0,46187.0,0.01229356]
[1641343947778,1.80246527,46188.0,46187.0,0.01229356]
[1641343948177,1.80246527,46188.0,46181.0,0.004]
[1641343948479,0.660961,46182.0,46181.0,0.004]
[1641343948677,1.084912,46182.0,46181.0,0.004]
[1641343948878,1.084912,46182.0,46181.0,0.01629527]
[1641343949081,1.65071473,46182.0,46181.0,0.01629527]
[1641343949320,1.65071473,46182.0,46181.0,0.23629527]
[1641343949723,1.66371473,46182.0,46181.0,0.23629527]
[1641343950128,1.097912,46182.0,46181.0,0.23629527]
[1641343950322,1.097912,46182.0,46181.0,0.224]
[1641343950921,1.084912,46182.0,46181.0,0.224]
[1641343951121,1.34425251,46182.0,46181.0,0.224]
[1641343951722,1.35625251,46182.0,46181.0,0.224]
[1641343952979,1.34425251,46182.0,46181.0,0.224]
[1641343953479,1.34425251,46182.0,46181.0,0.494]
[1641343953680,1.084912,46182.0,46181.0,0.224]
[1641343953879,1.098912,46182.0,46181.0,0.224]
[1641343954681,1.40049534,46182.0,46181.0,0.224]
[1641343955082,1.38649534,46182.0,46181.0,0.224]
[1641343955882,1.40049534,46182.0,46181.0,0.224]
[1641343957120,1.38649534,46182.0,46181.0,0.224]
[1641343957722,1.39949534,46182.0,46181.0,0.224]
[1641343959023,1.38649534,46182.0,46181.0,0.224]
[1641343959825,1.49949534,46182.0,46181.0,0.224]
[1641343960891,1.71298075,46182.0,46181.0,0.224]
[1641343961078,1.71298075,46182.0,46176.0,0.01]
[1641343961079,0.054176,46178.0,46176.0,0.01]
[1641343961291,0.98199272,46177.0,46176.0,0.01]
[1641343961477,1.03199272,46177.0,46171.0,0.004]
[1641343961678,0.60805481,46172.0,46171.0,0.004]
[1641343961877,1.33430052,46172.0,46171.0,0.004]
[1641343962082,1.43430052,46172.0,46171.0,0.004]
[1641343962477,1.48848052,46172.0,46171.0,0.004]
[1641343963877,1.5055647,46172.0,46171.0,0.004]
[1641343964324,1.50430989,46172.0,46171.0,0.004]
[1641343965124,1.49130989,46172.0,46171.0,0.004]
[1641343965823,1.50330989,46172.0,46171.0,0.004]
[1641343967127,1.49130989,46172.0,46171.0,0.004]
[1641343967826,1.50330989,46172.0,46171.0,0.004]
[1641343969080,1.49130989,46172.0,46171.0,0.004]
[1641343969981,1.49130989,46172.0,46171.0,0.224]
[1641343969982,1.50230989,46172.0,46171.0,0.224]
[1641343970182,0.49321518,46172.0,46171.0,0.224]
[1641343970382,0.49321518,46172.0,46171.0,1.644]
[1641343970580,0.49321518,46172.0,46171.0,1.89646563]
[1641343970581,0.11776418,46172.0,46171.0,1.89646563]
[1641343970785,0.01508418,46172.0,46171.0,2.25263263]
[1641343971188,0.00408418,46172.0,46171.0,2.25263263]
[1641343971826,0.00608418,46172.0,46171.0,2.25263263]
[1641343973128,0.00408418,46172.0,46171.0,2.25263263]
[1641343973928,0.01008418,46172.0,46171.0,2.25263263]
[1641343975228,0.00408418,46172.0,46171.0,2.25263263]
[1641343975877,0.01008418,46172.0,46171.0,2.25263263]
[1641343976978,0.00408418,46172.0,46171.0,1.996775]
[1641343977377,0.00408418,46172.0,46171.0,1.640608]
[1641343977780,0.00408418,46172.0,46171.0,0.220608]
[1641343977980,0.01108418,46172.0,46171.0,0.220608]
[1641343978179,0.01108418,46172.0,46171.0,1.140608]
[1641343979080,0.00408418,46172.0,46171.0,1.140608]
[1641343979932,0.01108418,46172.0,46171.0,1.140608]
[1641343981131,0.00408418,46172.0,46171.0,0.220608]
[1641343981831,0.01108418,46172.0,46171.0,0.220608]
[1641343982234,0.01108418,46172.0,46171.0,0.780608]
[1641343983482,0.00408418,46172.0,46171.0,0.780608]
[1641343983682,0.00408418,46172.0,46171.0,0.220608]
[1641343983880,0.01908418,46172.0,46171.0,0.220608]
[1641343984084,0.01908418,46172.0,46171.0,0.600608]
[1641343985084,0.00408418,46172.0,46171.0,0.600608]
[1641343985280,0.00408418,46172.0,46171.0,0.220608]
[1641343985480,0.11242318,46172.0,46171.0,0.220608]
[1641343985880,0.12342318,46172.0,46171.0,0.220608]
[1641343986081,0.12342318,46172.0,46171.0,0.640608]
[1641343986729,0.12342318,46172.0,46171.0,0.635608]
[1641343986927,0.12342318,46172.0,46171.0,0.215608]
[1641343987128,0.44887418,46172.0,46171.0,0.215608]
[1641343987525,0.59737418,46172.0,46171.0,0.215608]
[1641343987726,0.47803518,46172.0,46171.0,0.215608]
[1641343987926,0.49003518,46172.0,46171.0,0.215608]
[1641343988125,0.49003518,46172.0,46171.0,0.585608]
[1641343988326,0.21875218,46172.0,46171.0,0.585608]
[1641343988625,0.11875218,46172.0,46171.0,0.585608]
[1641343989025,0.11875218,46172.0,46171.0,0.215608]
[1641343989226,0.10675218,46172.0,46171.0,0.215608]
[1641343989627,0.10795319,46172.0,46171.0,0.215608]
[1641343990026,0.11795319,46172.0,46171.0,1.295608]
[1641343990227,0.01528519,46172.0,46171.0,1.295608]
[1641343990481,0.01528519,46172.0,46171.0,1.651775]
[1641343991083,0.00528519,46172.0,46171.0,2.171775]
[1641343991283,0.20528519,46172.0,46171.0,2.171775]
[1641343991685,0.20528519,46172.0,46171.0,1.651775]
[1641343991885,0.20528519,46172.0,46171.0,1.667775]
[1641343992093,0.20528519,46172.0,46171.0,2.187775]
[1641343992584,0.10538519,46172.0,46171.0,2.237775]
[1641343992783,0.10538519,46172.0,46171.0,1.717775]
[1641343993183,0.10538519,46172.0,46171.0,2.001775]
[1641343993783,0.10538519,46172.0,46171.0,1.701775]
[1641343993984,0.10538519,46172.0,46171.0,1.785775]
[1641343994834,0.10538519,46172.0,46171.0,1.735775]
[1641343995031,0.10538519,46172.0,46171.0,2.305775]
[1641343995233,0.10538519,46172.0,46171.0,2.221775]
[1641343995636,0.00264301,46173.0,46172.0,1.22638]
[1641343995834,0.00264301,46173.0,46172.0,1.582547]
[1641343996032,0.00264301,46173.0,46172.0,1.58378162]
[1641343996833,0.054147,46183.0,46182.0,0.30451362]
[1641343997033,0.01229586,46186.0,46182.0,0.55127168]
[1641343997237,0.01229586,46186.0,46182.0,0.30451362]
[1641343997976,0.02929586,46186.0,46182.0,0.30451362]
[1641343998174,0.054146,46184.0,46182.0,0.30451362]
[1641343998476,0.054146,46184.0,46182.0,0.41280448]
[1641343998874,0.054146,46184.0,46183.0,0.054146]
[1641343999074,0.32201837,46187.0,46183.0,0.054146]
[1641343999474,0.054146,46186.0,46183.0,0.054146]
[1641343999976,0.069146,46186.0,46183.0,0.054146]
[1641344000174,0.069146,46186.0,46183.0,0.274146]
[1641344000873,0.07047495,46186.0,46184.0,0.05414587]
[1641344001076,0.01632895,46186.0,46184.0,0.05414587]
[1641344001275,0.00132895,46186.0,46184.0,0.05414587]
[1641344001926,0.01732895,46186.0,46184.0,0.05414587]
[1641344003226,0.00132895,46186.0,46184.0,0.05414587]
[1641344004128,0.01332895,46186.0,46184.0,0.05414587]
[1641344005132,0.00132895,46186.0,46184.0,0.05414587]
[1641344005976,0.01332895,46186.0,46184.0,0.05414587]
[1641344007179,0.00132895,46186.0,46184.0,0.05414587]
[1641344007978,0.01332895,46186.0,46184.0,0.05414587]
[1641344009242,0.00132895,46186.0,46184.0,0.05414587]
[1641344010043,0.01232895,46186.0,46184.0,0.05414587]
[1641344011245,0.00132895,46186.0,46184.0,0.05414587]
[1641344011445,0.00154145,46186.0,46184.0,0.05414587]
[1641344012049,0.01254145,46186.0,46184.0,0.05414587]
[1641344012248,0.12084745,46186.0,46184.0,0.05414587]
[1641344012447,0.325451,46185.0,46184.0,0.05414587]
[1641344012647,0.5790734,46185.0,46184.0,0.05414587]
[1641344013879,0.325451,46185.0,46184.0,0.05414587]
[1641344014079,0.013,46185.0,46184.0,0.05414587]
[1641344015880,0.10569345,46186.0,46184.0,0.05414587]
[1641344016080,0.012,46185.0,46184.0,0.05414587]
[1641344017335,0.10569345,46186.0,46184.0,0.05414587]
[1641344017934,0.11569345,46186.0,46184.0,0.05414587]
[1641344019233,0.10569345,46186.0,46184.0,0.05414587]
[1641344019836,0.05154145,46186.0,46184.0,0.05414587]
[1641344020138,0.01354145,46186.0,46184.0,0.05414587]
[1641344021384,0.00154145,46186.0,46184.0,0.05414587]
[1641344021978,0.02054145,46186.0,46184.0,0.05414587]
[1641344023278,0.00154145,46186.0,46184.0,0.05414587]
[1641344024081,0.06454145,46186.0,46184.0,0.05414587]
[1641344025347,0.00154145,46186.0,46184.0,0.05414587]
[1641344026148,0.06054145,46186.0,46184.0,0.05414587]
[1641344027248,0.00154145,46186.0,46184.0,0.05414587]
[1641344028077,0.06554145,46186.0,46184.0,0.05414587]
[1641344028478,0.06554145,46186.0,46185.0,1.83596071]
[1641344028679,0.108282,46192.0,46188.0,0.10842201]
[1641344028883,0.64944,46194.0,46191.0,0.00129174]
[1641344029085,0.1001,46200.0,46193.0,1.15221436]
[1641344029279,0.1001,46200.0,46199.0,0.00124266]
[1641344029280,0.0901,46200.0,46199.0,0.00124266]
[1641344029479,0.0901,46200.0,46199.0,1.78056347]
[1641344030085,0.1281,46200.0,46199.0,0.67656347]
[1641344030677,0.1281,46200.0,46199.0,1.18656347]
[1641344031280,0.0901,46200.0,46199.0,1.18056347]
[1641344032132,0.0901,46200.0,46199.0,1.18956347]
[1641344032934,0.0901,46200.0,46199.0,1.15844347]
[1641344033139,0.0901,46200.0,46199.0,0.91102944]
[1641344033336,0.0901,46200.0,46199.0,0.90202944]
[1641344033538,0.0901,46200.0,46199.0,1.54202944]
[1641344033837,0.0901,46200.0,46199.0,1.79431608]
[1641344034037,0.0901,46200.0,46199.0,1.16731608]
[1641344034240,0.0901,46200.0,46199.0,0.91502944]
[1641344034438,0.054124,46202.0,46201.0,0.00287552]
[1641344034641,0.0001,46210.0,46202.0,1.151]
[1641344034839,0.0001,46210.0,46209.0,0.00120943]
[1641344035039,0.0001,46210.0,46209.0,1.75017643]
[1641344035482,0.0001,46210.0,46209.0,2.19528007]
[1641344036083,0.0001,46210.0,46209.0,2.30839007]
[1641344036684,0.0001,46210.0,46209.0,2.32674007]
[1641344037083,0.0044,46219.0,46210.0,1.60122923]
[1641344037283,0.0044,46219.0,46210.0,1.95739623]
[1641344037584,0.0044,46219.0,46211.0,1.06]
[1641344037783,0.054108,46217.0,46214.0,0.054108]
[1641344038183,0.054108,46217.0,46214.0,0.104108]
[1641344038384,0.054108,46217.0,46216.0,0.44951584]
[1641344038385,0.35288707,46217.0,46216.0,0.44951584]
[1641344038584,0.35288707,46217.0,46213.0,0.16232183]
[1641344038984,0.40288707,46217.0,46213.0,0.05410728]
[1641344039230,0.325451,46216.0,46213.0,0.05410728]
[1641344039629,0.054118,46216.0,46212.0,0.05412121]
[1641344039831,0.05412,46215.0,46212.0,0.05412121]
[1641344041033,0.05412,46214.0,46212.0,0.05412121]
[1641344042433,0.29199661,46214.0,46212.0,0.27412121]
[1641344044082,0.05412,46214.0,46212.0,0.27412121]
[1641344046486,0.05600174,46214.0,46212.0,0.27412121]
[1641344048434,0.00188174,46214.0,46212.0,0.27412121]
[1641344053687,0.00188174,46214.0,46213.0,0.24981416]
[1641344054088,0.00188174,46214.0,46213.0,0.29981416]
[1641344054336,0.00188174,46214.0,46213.0,0.65598116]
[1641344054537,0.00188174,46214.0,46213.0,1.89786116]
[1641344054936,0.054098,46218.0,46214.0,3.107167]
[1641344055144,0.054098,46218.0,46217.0,0.28918725]
[1641344055337,0.0003,46220.0,46217.0,0.28918725]
[1641344055338,0.0003,46220.0,46217.0,0.95720993]
[1641344055538,0.0003,46220.0,46218.0,0.356167]
[1641344055736,0.0003,46220.0,46219.0,1.40835956]
[1641344055937,0.0003,46220.0,46219.0,1.556167]
[1641344056336,0.0001,46220.0,46219.0,1.556167]
[1641344056739,0.0001,46220.0,46219.0,0.406167]
[1641344056938,0.0001,46220.0,46218.0,0.07137795]
[1641344057339,0.0001,46220.0,46218.0,0.12137795]
[1641344057538,0.0001,46220.0,46218.0,0.10537795]
[1641344057741,0.0001,46220.0,46218.0,0.1040981]
[1641344058185,0.0001,46220.0,46218.0,0.1200981]
[1641344059487,0.0001,46220.0,46218.0,0.1040981]
[1641344059886,0.0001,46220.0,46218.0,0.0540981]
[1641344060292,0.0001,46220.0,46218.0,0.0710981]
[1641344061289,0.054211,46220.0,46218.0,0.0710981]
[1641344061489,0.054211,46220.0,46218.0,0.0540981]
[1641344061734,0.0001,46220.0,46218.0,0.0540981]
[1641344062136,0.0001,46220.0,46218.0,0.0860981]
[1641344063434,0.0001,46220.0,46218.0,0.0540981]
[1641344064236,0.0001,46220.0,46218.0,0.0840981]
[1641344065485,0.0001,46220.0,46218.0,0.0540981]
[1641344065679,0.0501,46220.0,46218.0,0.0540981]
[1641344066179,0.104209,46220.0,46218.0,0.0880981]
[1641344066380,0.0001,46220.0,46218.0,0.0880981]
[1641344067682,0.0001,46220.0,46218.0,0.0540981]
[1641344068086,0.054209,46220.0,46218.0,0.0540981]
[1641344068283,0.054209,46220.0,46218.0,0.0890981]
[1641344068685,0.104209,46220.0,46218.0,0.0890981]
[1641344068887,0.0001,46220.0,46218.0,0.0890981]
[1641344069089,0.0001,46220.0,46219.0,1.306167]
[1641344069333,0.0001,46220.0,46219.0,0.95]
[1641344070334,0.0001,46220.0,46219.0,0.987]
[1641344072137,0.0001,46220.0,46219.0,1.96847624]
[1641344072336,0.0001,46220.0,46219.0,1.55747624]
[1641344072536,0.0001,46220.0,46219.0,0.60747624]
[1641344072737,0.0001,46220.0,46219.0,0.25130924]
[1641344072984,0.0001,46220.0,46219.0,0.20130924]
[1641344073387,0.0001,46220.0,46219.0,0.16230924]
[1641344073784,0.0001,46220.0,46219.0,0.21230924]
[1641344074183,0.0001,46220.0,46219.0,0.24630924]
[1641344074383,0.0001,46220.0,46219.0,0.78630924]
[1641344074784,0.0001,46220.0,46219.0,0.73630924]
[1641344075583,0.0001,46220.0,46219.0,0.70230924]
[1641344075785,0.0501,46220.0,46219.0,0.70230924]
[1641344076287,0.0501,46220.0,46219.0,1.39830924]
[1641344077130,0.0001,46220.0,46219.0,1.80447624]
[1641344077531,0.0001,46220.0,46219.0,1.77847624]
[1641344077931,0.0001,46220.0,46219.0,1.10847624]
[1641344078133,0.0001,46220.0,46219.0,1.50847624]
[1641344078332,0.0001,46220.0,46219.0,1.55047624]
[1641344078732,0.0001,46220.0,46219.0,1.50047624]
[1641344078933,0.0001,46220.0,46219.0,0.20430924]
[1641344079134,0.0001,46220.0,46219.0,0.532]
[1641344079533,0.0501,46220.0,46219.0,0.49]
[1641344080333,0.0501,46220.0,46219.0,0.513]
[1641344081580,0.0501,46220.0,46219.0,0.49]
[1641344081980,0.0001,46220.0,46219.0,0.49]
[1641344082379,0.0001,46220.0,46219.0,0.512]
[1641344083981,0.0001,46220.0,46219.0,0.822]
[1641344084233,0.0001,46220.0,46219.0,0.518]
[1641344084832,0.0501,46220.0,46219.0,0.518]
[1641344085033,0.0501,46220.0,46219.0,0.868]
[1641344085636,0.0501,46220.0,46219.0,0.84]
[1641344085932,0.0001,46220.0,46219.0,0.84]
[1641344086336,0.0001,46220.0,46219.0,0.869]
[1641344087037,0.0001,46220.0,46219.0,1.665167]
[1641344087232,0.0001,46220.0,46219.0,1.225167]
[1641344087635,0.0001,46220.0,46219.0,1.196167]
[1641344087837,0.0003,46221.0,46220.0,1.946267]
[1641344088089,0.0101,46224.0,46223.0,0.00122189]
[1641344088387,0.0003,46225.0,46223.0,2.05384889]
[1641344088587,0.0003,46225.0,46223.0,2.70525949]
[1641344088788,0.0003,46225.0,46223.0,3.09700247]
[1641344089095,0.0003,46225.0,46223.0,2.75302681]
[1641344089689,0.0003,46225.0,46223.0,0.05646]
[1641344089887,0.0003,46225.0,46222.0,0.05408739]